fUST/lending_fUST_20240501
["ID","MTS","AMOUNT","RATE_DAILY","PERIOD"]
[325062478,1714510262814,-151.0,0.0006,120]
[325062480,1714510262823,-4592.526782,0.0006,120]
[325062482,1714510262833,-4592.526782,0.0006,120]
[325062485,1714510262846,-158.318718,0.0006,120]
[325062487,1714510262856,-158.318718,0.0006,120]
[325062488,1714510262866,-432.305648,0.0006,120]
[325062490,1714510262875,-432.305642,0.0006,120]
[325062492,1714510262885,-254.542542,0.0006,120]
[325062494,1714510262895,-254.542547,0.0006,120]
[325062496,1714510262905,-615.719551,0.0006,120]
[325062498,1714510262916,-615.719558,0.0006,120]
[325062500,1714510262928,-428.659281,0.0006,120]
[325062502,1714510262938,-428.659275,0.0006,120]
[325062504,1714510262948,-151.0,0.0006,120]
[325062506,1714510262958,-2991.864451,0.0006,14]
[325062508,1714510262969,-2991.86446036,0.0006,14]
[325062510,1714510262978,-390.357949,0.0006,120]
[325062512,1714510262987,-217.0,0.00060137,120]
[325062514,1714510262997,-166.165195,0.00060639,2]
[325062516,1714510263007,-217.0,0.00060767,120]
[325062518,1714510263017,-6094.56543759,0.000609,120]
[325062520,1714510263027,-153.0,0.00061123,60]
[325062522,1714510263036,-153.0,0.00061123,60]
[325062524,1714510263046,-153.0,0.00061123,60]
[325062526,1714510263056,-153.0,0.00061123,60]
[325062528,1714510263068,-153.0,0.00061123,60]
[325062530,1714510263089,-153.0,0.00061123,60]
[325062532,1714510263099,-153.0,0.00061123,60]
[325062534,1714510263108,-153.0,0.00061123,60]
[325062536,1714510263119,-153.0,0.00061123,60]
[325062545,1714510263198,-153.0,0.00061123,60]
[325062547,1714510263209,-153.0,0.00061123,60]
[325062549,1714510263219,-153.0,0.00061123,60]
[325062551,1714510263228,-7300.27308727,0.0006126,120]
[325062552,1714510263238,-217.0,0.00061397,120]
[325062554,1714510263248,-345.70425292,0.000616,120]
[325062556,1714510263257,-1000.0,0.00061649,30]
[325062558,1714510263266,-1000.0,0.00061649,30]
[325062560,1714510263275,-153.0,0.00061671,60]
[325062562,1714510263284,-153.0,0.00061671,60]
[325062564,1714510263294,-153.0,0.00061671,60]
[325062566,1714510263303,-153.0,0.00061671,60]
[325062568,1714510263312,-153.0,0.00061671,60]
[325062570,1714510263321,-153.0,0.00061671,60]
[325062572,1714510263330,-153.0,0.00061671,60]
[325062574,1714510263340,-1000412.79472675,0.0006169,120]
[325062576,1714510263349,-151.0,0.0006169,120]
[325062578,1714510263358,-179.799337,0.0006169,120]
[325062580,1714510263368,-179.799337,0.0006169,120]
[325062582,1714510263377,-151.0,0.0006169,120]
[325062584,1714510263386,-201.476065,0.0006169,120]
[325062586,1714510263395,-160.464639,0.0006169,120]
[325062588,1714510263405,-201.476073,0.0006169,120]
[325062590,1714510263414,-160.464647,0.0006169,120]
[325062592,1714510263423,-756.348949,0.0006169,120]
[325062594,1714510263432,-756.348947,0.0006169,120]
[325062596,1714510263442,-846.785338,0.0006169,120]
[325062598,1714510263451,-846.78532983,0.0006169,120]
[325062600,1714510263460,-1461.923052,0.0006169,120]
[325062602,1714510263470,-1461.923057,0.0006169,120]
[325062604,1714510263479,-177.518976,0.0006169,120]
[325062606,1714510263489,-196.799656,0.0006169,30]
[325062608,1714510263499,-177.518981,0.0006169,120]
[325062610,1714510263508,-196.799653,0.0006169,30]
[325062612,1714510263517,-157.777711,0.0006169,120]
[325062614,1714510263527,-169.906248,0.0006169,120]
[325062616,1714510263536,-157.777716,0.0006169,120]
[325062618,1714510263545,-169.90624,0.0006169,120]
[325062620,1714510263555,-162.469575,0.0006169,120]
[325062622,1714510263564,-4592.526782,0.0006169,120]
[325062624,1714510263573,-4592.52677337,0.0006169,120]
[325062626,1714510263582,-158.318718,0.0006169,120]
[325062628,1714510263594,-158.318715,0.0006169,120]
[325062630,1714510263603,-58085.68,0.0006187,120]
[325062632,1714510263612,-500.0,0.00062,120]
[325062634,1714510263622,-93108.0,0.00062,120]
[325062636,1714510263632,-5000.0,0.00062,60]
[325062638,1714510263641,-217.0,0.00062027,120]
[325062640,1714510263650,-160.43633388,0.00062158,5]
[325062642,1714510263660,-2075.64738483,0.00062545,120]
[325062644,1714510263669,-217.0,0.00062658,120]
[325062646,1714510263679,-46799.01,0.0006285,120]
[325062648,1714510263694,-200.0,0.00063,120]
[325062650,1714510263710,-217.0,0.00063288,120]
[325062652,1714510263719,-85000.0,0.0006345,120]
[325062654,1714510263728,-499999.99999999,0.000638,30]
[325062656,1714510263739,-217.0,0.00063918,120]
[325062657,1714510263748,-10000.0,0.0006399,2]
[325062659,1714510263758,-1000.0,0.00063999,120]
[325062662,1714510263767,-739482.3432,0.00064,30]
[325062663,1714510263777,-179.799337,0.00064,120]
[325062665,1714510263786,-179.799341,0.00064,120]
[325062667,1714510263796,-159.700896,0.0006411,2]
[325062669,1714510263805,-7300.27208727,0.0006426,120]
[325062671,1714510263814,-930000.0,0.000644,30]
[325062673,1714510263833,-217.0,0.00064548,120]
[325062675,1714510263844,-209.677893,0.00064658,2]
[325062677,1714510263854,-335.463724,0.00064658,2]
[325062679,1714510263864,-533.598032,0.00064658,2]
[325062681,1714510263874,-3998.81074662,0.00065,120]
[325062683,1714510263883,-217.0,0.00065178,120]
[325062685,1714510263892,-202.0,0.0006566,120]
[325062687,1714510263901,-217.0,0.00065808,120]
[325062689,1714510263910,-1727.21817169,0.0006643,2]
[325062691,1714510263919,-217.0,0.00066438,120]
[325062693,1714510263930,-33416.98541345,0.000669,120]
[325062695,1714510263940,-217.0,0.00067068,120]
[325062697,1714510263950,-217.0,0.00067699,120]
[325062699,1714510263959,-2000.0,0.00068,15]
[325062701,1714510263968,-217.0,0.00068329,120]
[325062703,1714510263977,-151.0,0.00068493,30]
[325062705,1714510263987,-152.823281,0.00068493,30]
[325062708,1714510263996,-150.75878594,0.0006881,2]
[325062709,1714510264005,-217.0,0.00068959,120]
[325062712,1714510264015,-154.87609912,0.00069,7]
[325062714,1714510264025,-50864.48279653,0.00069,120]
[325062716,1714510264035,-3000.0,0.00069,120]
[325062717,1714510264044,-3000.0,0.0006901,120]
[325062720,1714510264054,-3000.0,0.0006902,120]
[325062722,1714510264063,-3000.0,0.0006903,120]
[325062723,1714510264073,-3980.975844,0.0006904,120]
[325062725,1714510264082,-217.0,0.00069589,120]
[325062726,1714510264091,-150.0,0.0007,120]
[325062727,1714510264100,-1200.0,0.0007,120]
[325062728,1714510264109,-175751.35977016,0.0007,120]
[325062729,1714510264118,-3998.81074662,0.0007,120]
[325062730,1714510264128,-19655.0,0.0007,14]
[325062731,1714510264137,-290.45175057,0.0007,120]
[325062733,1714510264146,-217.0,0.00070219,120]
[325062735,1714510264155,-209.677893,0.00070685,120]
[325062737,1714510264165,-335.463724,0.00070685,120]
[325062739,1714510264175,-533.598032,0.00070685,120]
[325062741,1714510264184,-217.0,0.00070849,120]
[325062743,1714510264193,-217.0,0.00071479,120]
[325062745,1714510264203,-2206.52371516,0.00072,120]
[325062747,1714510264212,-217.0,0.0007211,120]
[325062749,1714510264221,-1727.21817169,0.00072518,2]
[325062751,1714510264230,-217.0,0.0007274,120]
[325062753,1714510264240,-217.0,0.0007337,120]
[325062755,1714510264249,-217.0,0.00074,120]
[325062757,1714510264259,-159.700896,0.00074521,120]
[325062759,1714510264268,-160.570029,0.00074547,2]
[325062761,1714510264276,-217.0,0.0007463,120]
[325062763,1714510264285,-3998.81074662,0.00075,120]
[325062765,1714510264294,-217.0,0.0007526,120]
[325062767,1714510264303,-217.0,0.0007589,120]
[325062769,1714510264312,-178.4064834,0.000765,120]
[325062771,1714510264322,-217.0,0.00076521,120]
[325062773,1714510264331,-209.677893,0.00076712,120]
[325062775,1714510264341,-335.463724,0.00076712,120]
[325062777,1714510264350,-533.598032,0.00076712,120]
[325062779,1714510264360,-217.0,0.00077151,120]
[325062781,1714510264369,-217.0,0.00077781,120]
[325062783,1714510264378,-50199.04919255,0.00078,60]
[325062785,1714510264388,-217.0,0.00078411,120]
[325062787,1714510264397,-1727.21817169,0.00078607,2]
[325062789,1714510264406,-539701.5648736,0.000788,30]
[325062791,1714510264415,-166.666666,0.0007884,120]
[325062793,1714510264424,-217.0,0.00079041,120]
[325062795,1714510264433,-217.0,0.00079671,120]
[325062797,1714510264442,-166.165195,0.00079726,120]
[325062799,1714510264451,-10000.0,0.000799,120]
[325062801,1714510264460,-47145.12811226,0.000799,120]
[325062803,1714510264469,-661.6887118,0.0008,50]
[325062805,1714510264478,-1200.0,0.0008,120]
[325062807,1714510264486,-5000.0,0.0008,120]
[325062809,1714510264495,-250.0,0.0008,120]
[325062810,1714510264505,-3610.71449628,0.0008,120]
[325062812,1714510264514,-3998.81074662,0.0008,120]
[325062815,1714510264524,-3955.64037689,0.0008,2]
[325062817,1714510264533,-1124.9215851,0.0008,120]
[325062819,1714510264542,-300.0,0.0008,105]
[325062821,1714510264551,-1775.663982,0.0008,120]
[325062823,1714510264560,-217.0,0.00080301,120]
[325062825,1714510264569,-217.0,0.00080932,120]
[325062827,1714510264578,-300.0,0.000815,106]
[325062836,1714510264654,-217.0,0.00081562,120]
[325062838,1714510264664,-217.0,0.00082192,120]
[325062840,1714510264673,-151.0,0.00082685,120]
[325062842,1714510264682,-209.677893,0.0008274,120]
[325062844,1714510264695,-335.463724,0.0008274,120]
[325062846,1714510264705,-533.598032,0.0008274,120]
[325062848,1714510264714,-217.0,0.00082822,120]
[325062850,1714510264723,-2121.0,0.00083,23]
[325062852,1714510264735,-300.0,0.00083,107]
[325062854,1714510264744,-217.0,0.00083452,120]
[325062856,1714510264752,-217.0,0.00084082,120]
[325062858,1714510264761,-784914.48414046,0.000844,30]
[325062864,1714510264811,-11891.8015939,0.000844,30]
[325067653,1714510316874,384.10426969,0.00020913,2]
[325069020,1714510330888,200.11832451,0.00020913,2]
[325069367,1714510340623,36069.45120121,0.00020913,2]
[325069368,1714510341517,472.82364765,0.00020913,2]
[325069369,1714510341894,955.70568899,0.00020913,2]
[325069373,1714510346704,730.70803192,0.00020913,2]
[325069374,1714510348907,200.11832451,0.00020913,2]
[325069377,1714510351245,505.77078806,0.00025,2]
[325069436,1714511007015,200.11832451,9.999e-05,2]
[325069461,1714511124149,1894.49583447,9.999e-05,2]
[325069462,1714511125190,2864.60998172,9.999e-05,2]
[325069465,1714511157135,-200.11832451,0.00017999,2]
[325069466,1714511157154,-10.09993099,0.00018,2]
[325069467,1714511232113,-200.11832451,0.00017999,2]
[325069468,1714511232132,-5674.52352213,0.00018,2]
[325069469,1714511232152,-256.887639,0.00018312,2]
[325069470,1714511232171,-182.122785,0.00018606,2]
[325069471,1714511232191,-22913.75475246,0.00018856,2]
[325069472,1714511236120,-308.84790387,0.00017998,2]
[325069473,1714511236141,-41.12812153,0.00018856,2]
[325069481,1714511251116,-520.3609854,0.00018855,2]
[325069482,1714511251139,-1945.11712601,0.00018856,2]
[325069483,1714511251160,-160.56509,0.00019178,2]
[325069484,1714511251179,-308.41779901,0.00019345,2]
[325069485,1714511251199,-200.11832451,0.00019346,2]
[325069486,1714511251220,-6885.13137943,0.00019347,2]
[325069522,1714511345117,-1176.6693897,0.00013799,2]
[325069523,1714511345136,-730.70803192,0.00019344,2]
[325069524,1714511345155,-200.11832451,0.00019344,2]
[325069525,1714511345175,-1879.32925164,0.00019345,2]
[325069526,1714511345195,-927.87342115,0.00019346,2]
[325069527,1714511345219,-11525.54346522,0.00019347,2]
[325069528,1714511353122,-7674.87977634,0.00019347,2]
[325069529,1714511353143,-6115.80862057,0.00019347,2]
[325069530,1714511353162,-2624.41567705,0.00019348,2]
[325069531,1714511353182,-382.15946328,0.00019348,2]
[325069532,1714511353202,-154.79876161,0.00019348,2]
[325069533,1714511353221,-475.03872929,0.00019348,2]
[325069534,1714511353241,-207.99357024,0.00019348,2]
[325069535,1714511353261,-700.42924407,0.00019348,2]
[325069536,1714511353279,-155.24511279,0.00019348,2]
[325069537,1714511353299,-2391.54694339,0.00019348,2]
[325069538,1714511353319,-474.96750211,0.00019348,2]
[325069539,1714511353339,-154.81422293,0.00019348,2]
[325069540,1714511353358,-154.81422293,0.00019348,2]
[325069541,1714511353377,-155.09717222,0.00019348,2]
[325069542,1714511353395,-154.99891037,0.00019348,2]
[325069543,1714511353414,-2100.78803626,0.00019348,2]
[325069544,1714511353433,-180.21374479,0.00019348,2]
[325069545,1714511353452,-526.53023767,0.00019348,2]
[325069546,1714511353473,-154.81422293,0.00019348,2]
[325069547,1714511353492,-155.0008864,0.00019348,2]
[325069548,1714511353510,-194.35141936,0.00019348,2]
[325069549,1714511353529,-1091.30429574,0.00019349,2]
[325069550,1714511353548,-172.01034993,0.00019483,2]
[325069551,1714511353567,-928.69749977,0.00019866,2]
[325069552,1714511353586,-500.0,0.00019999,2]
[325069553,1714511353606,-606.93939154,0.00019999,2]
[325069554,1714511353627,-500.0,0.00019999,2]
[325069555,1714511353648,-500.46173256,0.00019999,2]
[325069556,1714511353666,-500.86,0.00019999,2]
[325069557,1714511353685,-500.0,0.00019999,2]
[325069558,1714511353704,-209.01243625,0.00019999,2]
[325069559,1714511353724,-500.0,0.00019999,2]
[325069560,1714511353743,-500.0,0.00019999,2]
[325069561,1714511353761,-500.0,0.00019999,2]
[325069562,1714511353779,-4234.78632479,0.0002,2]
[325069563,1714511353798,-386.0,0.00020904,3]
[325069564,1714511353817,-579.05,0.00020904,3]
[325069565,1714511353836,-157.61317396,0.00020911,2]
[325069566,1714511353854,-302.0498762,0.00020911,2]
[325069567,1714511353872,-5797.99560728,0.00020912,2]
[325069568,1714511353890,-241.71320654,0.00020912,2]
[325069569,1714511353909,-237.64873836,0.00020912,2]
[325069570,1714511353928,-981.37861207,0.00020912,2]
[325069571,1714511353948,-1620.35755398,0.00020912,2]
[325069572,1714511353967,-3051.21388193,0.00020912,2]
[325069573,1714511353988,-2807.5535999,0.00020912,2]
[325069574,1714511354008,-550.09434991,0.00020913,2]
[325069575,1714511354028,-250.37786514,0.00020913,2]
[325069576,1714511354048,-193.0,0.0002099,3]
[325069577,1714511354066,-2250.16272029,0.00021,2]
[325069578,1714511354086,-773.57705281,0.00021,2]
[325069579,1714511354105,-166.666666,0.00021918,2]
[325069580,1714511354125,-159.21978257,0.00022,2]
[325069581,1714511354144,-772.0,0.00022274,3]
[325069582,1714511354164,-386.0,0.0002236,3]
[325069583,1714511354185,-166.666666,0.00022431,2]
[325069584,1714511354208,-225.598459,0.00022466,2]
[325069585,1714511354231,-159.700896,0.00022466,2]
[325069586,1714511354251,-166.666666,0.00022944,2]
[325069587,1714511354272,-500.0,0.00022999,2]
[325069588,1714511354293,-363.41004364,0.00022999,2]
[325069589,1714511354315,-354.87854672,0.00022999,2]
[325069590,1714511354338,-714.17223552,0.00023,2]
[325069591,1714511354358,-4045.45457583,0.00023,2]
[325069592,1714511354392,-17076.75456594,0.00023,2]
[325069593,1714511354412,-620.12219177,0.00023408,2]
[325069594,1714511354432,-166.666666,0.00023456,2]
[325069595,1714511354452,-166.666666,0.00023969,2]
[325069596,1714511354472,-989.91268434,0.00024,2]
[325069597,1714511354494,-693.45686249,0.00024,2]
[325069598,1714511354514,-166.666666,0.00024482,2]
[325069599,1714511354534,-620.00610959,0.00024578,2]
[325069600,1714511354556,-500.0,0.00024657,2]
[325069601,1714511354575,-380.0,0.00024658,2]
[325069602,1714511354595,-500.0,0.00024712,2]
[325069603,1714511354714,-500.0,0.00024767,2]
[325069604,1714511354737,-500.0,0.00024821,2]
[325069605,1714511354757,-2000.0,0.00025,2]
[325069606,1714511354776,-620.00030548,0.00025807,2]
[325069607,1714511354795,-620.00001527,0.00027098,2]
[325069608,1714511354814,-256.887639,0.00027467,2]
[325069609,1714511354836,-220.93587945,0.00028,2]
[325069610,1714511354861,-620.00000076,0.00028453,2]
[325069611,1714511354882,-225.598459,0.00028493,2]
[325069612,1714511356994,200.11832451,0.00020913,2]
[325069613,1714511359859,207.82371238,0.00020913,2]
[325069615,1714511362106,-501.09155312,0.000299,2]
[325069616,1714511362127,-501.09155308,0.000299,2]
[325069617,1714511362147,-378.53159332,0.000299,2]
[325069618,1714511366141,5389.30494123,0.00019347,2]
[325069620,1714511374195,238.25101417,0.00024,2]
[325069621,1714511379052,200.11832451,0.00020913,2]
[325069623,1714511394996,200.11832451,0.00020913,2]
[325069625,1714511397440,254.05667354,0.00020913,2]
[325069626,1714511399709,596.31188749,0.00020913,2]
[325069627,1714511405122,514.30635662,0.00020913,2]
[325069628,1714511406210,617.93288314,0.00020913,2]
[325069629,1714511406778,157.96527869,0.00020913,2]
[325069630,1714511407692,154.78330338,0.00020913,2]
[325069631,1714511407947,283.88872993,0.00020912,2]
[325069632,1714511408147,280.93828485,0.00020913,2]
[325069633,1714511408385,199.67389647,0.00020913,2]
[325069634,1714511411014,303.44237304,0.00020913,2]
[325069635,1714511411766,208.1175851,0.00020913,2]
[325069636,1714511412300,159.21978257,0.00022,2]
[325069637,1714511412824,328.85179665,0.00020913,2]
[325069638,1714511414223,193.8405085,0.00020913,2]
[325069639,1714511414249,308.84790387,0.00020913,2]
[325069640,1714511422746,157.58219537,0.00020913,2]
[325069641,1714511423042,293.10158173,0.00020913,2]
[325069642,1714511425631,156.93928336,0.00020913,2]
[325069643,1714511425928,284.15131095,0.00020913,2]
[325069644,1714511426148,1890.36328834,0.00020913,2]
[325069660,1714511431768,207.62940718,0.00020913,2]
[325069682,1714511431962,-122.55995976,0.000299,2]
[325069684,1714511431972,-501.09155308,0.000299,2]
[325069685,1714511431980,-25.88140391,0.000299,2]
[325069687,1714511432001,-475.21014917,0.000299,2]
[325069689,1714511432012,-501.09155308,0.000299,2]
[325069691,1714511432026,-155.06563681,0.0003,2]
[325069693,1714511432035,-154.81421984,0.0003,4]
[325069695,1714511432044,-3722.55253328,0.0003,4]
[325069697,1714511432055,-1751.631749,0.0003,2]
[325069699,1714511432064,-2146.59217439,0.0003,30]
[325069701,1714511432074,-150.0,0.00030007,3]
[325069703,1714511432083,-1972.05,0.0003177,3]
[325069705,1714511432095,-3760.57,0.0003177,3]
[325069707,1714511432104,-500.0,0.00031777,2]
[325069709,1714511432113,-682.32995178,0.00031779,4]
[325069711,1714511432122,-155.74716156,0.00031779,2]
[325069713,1714511432131,-152.09080574,0.00031779,2]
[325069715,1714511432140,-500.0,0.0003178,2]
[325069717,1714511432150,-500.0,0.0003178,2]
[325069719,1714511432159,-500.0,0.0003178,2]
[325069721,1714511432169,-500.0,0.0003178,2]
[325069723,1714511432178,-490.73495846,0.0003178,2]
[325069725,1714511432187,-500.0,0.0003178,2]
[325069727,1714511432196,-500.20813269,0.0003178,2]
[325069729,1714511432205,-500.0,0.0003178,2]
[325069731,1714511432215,-500.0,0.0003178,2]
[325069733,1714511432224,-503.22102697,0.0003178,2]
[325069735,1714511432233,-500.0,0.0003178,2]
[325069737,1714511432245,-500.0,0.0003178,2]
[325069739,1714511432257,-500.0,0.0003178,2]
[325069741,1714511432268,-500.0,0.0003178,2]
[325069743,1714511432280,-500.0,0.0003178,2]
[325069745,1714511432291,-500.76922765,0.0003178,2]
[325069748,1714511432302,-502.05710216,0.0003178,2]
[325069750,1714511432313,-500.0,0.0003178,2]
[325069752,1714511432324,-500.0,0.0003178,2]
[325069754,1714511432336,-500.0,0.0003178,2]
[325069756,1714511432346,-500.0,0.0003178,2]
[325069758,1714511432357,-500.0,0.0003178,2]
[325069760,1714511432367,-500.0,0.0003178,2]
[325069763,1714511432377,-500.6487362,0.0003178,2]
[325069765,1714511432388,-500.0,0.0003178,2]
[325069767,1714511432400,-500.0,0.0003178,2]
[325069769,1714511432410,-500.0,0.0003178,2]
[325069771,1714511432421,-500.0,0.0003178,2]
[325069773,1714511432431,-500.0,0.0003178,2]
[325069775,1714511432442,-500.0,0.0003178,2]
[325069778,1714511432453,-503.55650201,0.0003178,2]
[325069780,1714511432464,-500.0,0.0003178,2]
[325069782,1714511432475,-380.81,0.0003178,2]
[325069784,1714511432486,-500.0,0.0003178,2]
[325069786,1714511432496,-503.84306959,0.0003178,2]
[325069788,1714511432506,-500.0,0.0003178,2]
[325069790,1714511432516,-501.55151299,0.0003178,2]
[325069792,1714511432528,-500.48147986,0.0003178,2]
[325069794,1714511432539,-500.0,0.0003178,2]
[325069795,1714511432549,-500.0,0.0003178,2]
[325069798,1714511432564,-500.0,0.0003178,2]
[325069800,1714511432576,-501.43735515,0.0003178,2]
[325069802,1714511432587,-500.0,0.0003178,2]
[325069804,1714511432597,-500.0,0.0003178,2]
[325069806,1714511432608,-500.0,0.0003178,2]
[325069808,1714511432618,-510.64171882,0.0003178,2]
[325069810,1714511432630,-500.0,0.0003178,2]
[325069812,1714511432640,-500.0,0.0003178,2]
[325069814,1714511432650,-500.0,0.0003178,2]
[325069817,1714511432659,-500.0,0.0003178,2]
[325069819,1714511432670,-500.0,0.0003178,2]
[325069821,1714511432679,-500.0,0.0003178,2]
[325069822,1714511432690,-199.26720215,0.0003178,2]
[325069825,1714511432700,-500.0,0.0003178,2]
[325069827,1714511432711,-500.0,0.0003178,2]
[325069829,1714511432722,-68.27533647,0.0003178,2]
[325069831,1714511432737,-431.72466353,0.0003178,2]
[325069833,1714511432748,-500.0,0.0003178,2]
[325069835,1714511432758,-500.0,0.0003178,2]
[325069838,1714511432768,-500.0,0.0003178,2]
[325069840,1714511432778,-39.72759677,0.0003178,2]
[325069844,1714511432807,204.53299641,0.00022,2]
[325069852,1714511432873,154.84515485,0.00020913,2]
[325069882,1714511433381,415.25997838,0.00020913,2]
[325069884,1714511434073,166.02245463,0.00020913,2]
[325069885,1714511434175,308.61977332,0.00020913,2]
[325069886,1714511435115,526.0435109,0.00020913,4]
[325069929,1714511438032,-356.55693736,0.00031769,2]
[325069931,1714511438044,-361.69439042,0.0003177,3]
[325069935,1714511438068,-2772.11560958,0.0003177,3]
[325069937,1714511438079,-460.27240323,0.0003178,2]
[325069939,1714511438090,-500.0,0.0003178,2]
[325069942,1714511438101,-500.0,0.0003178,2]
[325069944,1714511438111,-500.0,0.0003178,2]
[325069946,1714511438122,-500.0,0.0003178,2]
[325069948,1714511438132,-500.0,0.0003178,2]
[325069950,1714511438143,-500.0,0.0003178,2]
[325069953,1714511438153,-505.81526036,0.0003178,2]
[325069955,1714511438163,-500.0,0.0003178,2]
[325069958,1714511438172,-500.0,0.0003178,2]
[325069961,1714511438181,-500.0,0.0003178,2]
[325069965,1714511438191,-500.0,0.0003178,2]
[325069967,1714511438202,-500.0,0.0003178,2]
[325069972,1714511438214,-500.0,0.0003178,2]
[325069975,1714511438223,-500.0,0.0003178,2]
[325069978,1714511438233,-500.0,0.0003178,2]
[325069980,1714511438242,-500.0,0.0003178,2]
[325069982,1714511438253,-500.0,0.0003178,2]
[325069984,1714511438264,-500.0,0.0003178,2]
[325069987,1714511438274,-500.0,0.0003178,2]
[325069992,1714511438297,-500.0,0.0003178,2]
[325069995,1714511438308,-500.0,0.0003178,2]
[325070000,1714511438319,-500.0,0.0003178,2]
[325070002,1714511438330,-500.0,0.0003178,2]
[325070005,1714511438341,-500.0,0.0003178,2]
[325070006,1714511438352,-500.0,0.0003178,2]
[325070007,1714511438361,-331.55185091,0.0003178,2]
[325070008,1714511438372,-500.0,0.0003178,2]
[325070009,1714511438383,-500.0,0.0003178,2]
[325070010,1714511438394,-500.0,0.0003178,2]
[325070011,1714511438405,-500.0,0.0003178,2]
[325070012,1714511438418,-500.0,0.0003178,2]
[325070013,1714511438429,-500.0,0.0003178,2]
[325070014,1714511438440,-500.0,0.0003178,2]
[325070015,1714511438451,-500.0,0.0003178,2]
[325070016,1714511438462,-500.0,0.0003178,2]
[325070017,1714511438473,-309.59752322,0.0003178,2]
[325070018,1714511438484,-500.0,0.0003178,2]
[325070019,1714511438495,-500.0,0.0003178,2]
[325070020,1714511438506,-500.0,0.0003178,2]
[325070021,1714511438516,-500.0,0.0003178,2]
[325070022,1714511438527,-500.0,0.0003178,2]
[325070023,1714511438539,-500.0,0.0003178,2]
[325070024,1714511438551,-500.0,0.0003178,30]
[325070025,1714511438561,-500.0,0.0003178,2]
[325070026,1714511438572,-500.0,0.0003178,2]
[325070027,1714511438582,-500.0,0.0003178,2]
[325070029,1714511438593,-500.0,0.0003178,2]
[325070047,1714511438751,-625.08415552,0.0003178,2]
[325070049,1714511438760,-500.0,0.0003178,2]
[325070051,1714511438770,-300.0,0.0003178,2]
[325070053,1714511438780,-500.0,0.0003178,2]
[325070055,1714511438790,-513.51395336,0.0003178,2]
[325070057,1714511438800,-308.4611226,0.0003178,2]
[325070059,1714511438809,-500.0,0.0003178,2]
[325070061,1714511438819,-500.0,0.0003178,2]
[325070063,1714511438828,-360.43850052,0.0003178,2]
[325070065,1714511438836,-500.0,0.0003178,2]
[325070067,1714511438846,-500.0,0.0003178,2]
[325070069,1714511438856,-278.18314733,0.0003178,2]
[325070071,1714511438865,-500.0,0.0003178,2]
[325070073,1714511438874,-500.0,0.0003178,2]
[325070075,1714511438883,-172.68244233,0.0003178,2]
[325070077,1714511438893,-500.0,0.0003178,2]
[325070079,1714511438902,-500.0,0.0003178,2]
[325070081,1714511438911,-500.0,0.0003178,2]
[325070083,1714511438919,-500.0,0.0003178,2]
[325070085,1714511438928,-500.0,0.0003178,2]
[325070087,1714511438937,-500.0,0.0003178,2]
[325070089,1714511438946,-500.0,0.0003178,2]
[325070091,1714511438955,-500.0,0.0003178,2]
[325070093,1714511438964,-500.0,0.0003178,2]
[325070095,1714511438973,-500.0,0.0003178,2]
[325070097,1714511438982,-299.400029,0.0003178,2]
[325070099,1714511438991,-500.0,0.0003178,2]
[325070101,1714511439000,-500.0,0.0003178,2]
[325070103,1714511439009,-500.0,0.0003178,2]
[325070105,1714511439019,-500.0,0.0003178,2]